bitfinex/quotes_ETHUSD_20220215
["timestamp","ask_amount","ask_price","bid_price","bid_amount"]
[1644962649397,0.61382904,3101.7,3101.0,1.21891855]
[1644962649600,0.61382904,3101.7,3101.1,0.80624]
[1644962649805,0.61382904,3101.7,3101.2,1.21891855]
[1644962650202,0.00258906,3101.6,3101.2,1.21891855]
[1644962650706,0.80622,3101.5,3101.2,1.21891855]
[1644962650937,0.15271022,3101.4,3101.2,1.21891855]
[1644962651307,0.15271022,3101.4,3101.2,2.02508855]
[1644962651504,0.00258906,3101.5,3101.3,1.21891855]
[1644962652103,0.80619,3101.4,3101.3,1.21891855]
[1644962652342,0.95892364,3101.4,3101.3,1.21891855]
[1644962652938,0.15273364,3101.4,3101.3,1.21891855]
[1644962653938,0.00258912,3101.5,3101.3,1.21891855]
[1644962654338,0.15532276,3101.5,3101.3,1.21891855]
[1644962654539,0.15273364,3101.4,3101.3,1.21891855]
[1644962654837,0.80614,3101.6,3101.3,1.21891855]
[1644962655042,0.15273364,3101.5,3101.3,1.21891855]
[1644962657693,0.15273364,3101.5,3101.4,0.80613]
[1644962658090,0.15273364,3101.5,3101.4,2.02397296]
[1644962658292,0.15273364,3101.5,3101.4,2.02397423]
[1644962658489,0.15273364,3101.5,3101.4,0.80613]
[1644962658690,0.15273364,3101.5,3101.4,2.0239747]
[1644962658890,0.15273364,3101.5,3101.4,0.80613]
[1644962659092,0.15273364,3101.5,3101.4,2.02398313]
[1644962659291,0.15273364,3101.5,3101.4,0.80613]
[1644962659492,0.15273364,3101.5,3101.4,2.02387748]
[1644962659690,0.15273364,3101.5,3101.4,0.80613]
[1644962659958,0.15273364,3101.5,3101.4,2.02372104]
[1644962660154,0.15273364,3101.5,3101.4,2.02372415]
[1644962660459,0.15273364,3101.5,3101.4,2.02372443]
[1644962660656,0.15273364,3101.5,3101.4,0.80613]
[1644962660856,0.15273364,3101.5,3101.4,2.02372164]
[1644962661056,0.15273364,3101.5,3101.4,2.02372186]
[1644962661356,0.15273364,3101.5,3101.4,0.80613]
[1644962661755,0.0025891,3101.6,3101.4,0.80613]
[1644962661957,0.15273364,3101.7,3101.4,0.80613]
[1644962662156,0.61382904,3101.9,3101.5,1.21750394]
[1644962662157,0.15273364,3101.6,3101.5,1.21750394]
[1644962662357,0.61382904,3101.9,3101.5,1.21750319]
[1644962662561,1.41988904,3101.9,3101.4,0.80613]
[1644962662759,0.15273364,3101.8,3101.5,1.21754402]
[1644962662966,0.15273364,3101.8,3101.6,1.21754503]
[1644962663159,0.15273364,3101.8,3101.4,0.80613]
[1644962663368,0.15273364,3101.8,3101.5,1.2174847]
[1644962663583,0.15273364,3101.8,3101.4,0.80613]
[1644962663788,0.15273364,3101.8,3101.5,2.02354569]
[1644962663984,0.15273364,3101.8,3101.6,1.2174858]
[1644962664185,0.15273364,3101.8,3101.5,0.80606]
[1644962664384,0.15273364,3101.8,3101.6,1.21751332]
[1644962664685,0.15273364,3101.8,3101.7,1.21751294]
[1644962664885,0.15273364,3101.8,3101.6,1.21751334]
[1644962665089,0.15273364,3101.8,3101.7,1.21751333]
[1644962665285,0.15273364,3101.8,3101.6,1.21748506]
[1644962665493,0.15273364,3101.8,3101.7,1.21737704]
[1644962665789,0.15273364,3101.8,3101.6,1.21742012]
[1644962665989,0.15273364,3101.8,3101.7,1.21742608]
[1644962666185,0.95882364,3101.8,3101.7,1.21741877]
[1644962666386,0.95882364,3101.8,3101.7,1.21742314]
[1644962666586,0.95882364,3101.8,3101.6,1.21742356]
[1644962666787,0.15273364,3101.7,3101.5,0.80606]
[1644962668338,0.15273364,3101.7,3101.6,1.21739315]
[1644962668539,0.15273364,3101.7,3101.5,0.80606]
[1644962668741,0.15525671,3101.8,3101.6,1.2173923]
[1644962668938,0.15525671,3101.8,3101.5,0.80606]
[1644962668939,0.15273364,3101.7,3101.5,0.80606]
[1644962669139,0.15273364,3101.6,3101.5,1.10606]
[1644962669340,0.15273364,3101.6,3101.5,2.32333848]
[1644962670440,0.80609,3101.8,3101.5,2.32333848]
[1644962670646,0.14776802,3101.7,3101.6,1.21727848]
[1644962671697,0.14524495,3101.7,3101.6,1.21727848]
[1644962672900,0.14523247,3101.7,3101.6,1.21727848]
[1644962673100,0.80869377,3101.8,3101.6,1.21727848]
[1644962673304,0.14520672,3101.7,3101.6,1.21727848]
[1644962673500,0.80869377,3101.8,3101.6,1.21727848]
[1644962673701,0.14510877,3101.7,3101.6,1.21727848]
[1644962673901,0.14510994,3101.7,3101.6,1.21727848]
[1644962674103,0.14512153,3101.7,3101.6,1.21727848]
[1644962674302,0.14512153,3101.7,3101.6,1.21593256]
[1644962676140,0.0025858,3101.8,3101.6,1.21593256]
[1644962676439,0.80607,3101.9,3101.6,1.21593256]
[1644962676639,0.80607,3101.9,3101.6,2.02199256]
[1644962676841,0.8086558,3101.9,3101.6,0.80606]
[1644962677639,0.80607,3101.9,3101.6,0.80606]
[1644962677840,0.80864187,3101.9,3101.6,0.80606]
[1644962678889,0.80607,3101.9,3101.6,0.80606]
[1644962679090,0.80864307,3101.9,3101.6,0.80606]
[1644962680093,0.80607,3101.9,3101.6,0.80606]
[1644962680292,0.80864307,3101.9,3101.6,0.80606]
[1644962680895,0.80864307,3101.9,3101.7,0.3]
[1644962681290,0.80607,3101.9,3101.7,0.3]
[1644962685744,0.80607,3101.9,3101.6,0.80606]
[1644962686590,0.80845269,3102.0,3101.6,0.80606]
[1644962686888,0.00241269,3102.0,3101.6,0.80606]
[1644962687288,1.61212,3102.2,3101.6,0.80606]
[1644962688991,0.80606,3102.1,3101.6,0.80606]
[1644962689841,0.00257639,3102.0,3101.6,0.80606]
[1644962690242,0.80863639,3102.0,3101.6,0.80606]
[1644962690840,0.80606,3102.0,3101.6,0.80606]
[1644962691041,0.80863641,3102.0,3101.6,0.80606]
[1644962692046,0.80606,3102.0,3101.6,0.80606]
[1644962692244,0.80874154,3102.0,3101.6,0.80606]
[1644962693244,0.80606,3102.0,3101.6,0.80606]
[1644962693445,0.80874154,3102.0,3101.6,0.80606]
[1644962694392,0.14513281,3101.9,3101.7,1.22330943]
[1644962694796,0.95121281,3101.9,3101.7,1.22330943]
[1644962694996,0.80608,3101.9,3101.7,1.22330943]
[1644962695196,0.14515567,3101.8,3101.7,1.22330943]
[1644962695395,0.00268154,3102.0,3101.7,1.22330943]
[1644962695597,0.14514777,3102.1,3101.8,1.22330943]
[1644962695803,0.80609,3102.0,3101.9,1.22330943]
[1644962695997,0.95123777,3102.0,3101.9,1.22330943]
[1644962696198,0.95123777,3102.0,3101.6,1.22330943]
[1644962696395,0.14514777,3101.9,3101.7,1.22330943]
[1644962696802,1.61212,3102.2,3101.7,1.22330943]
[1644962696995,0.14516911,3102.1,3101.7,1.22330943]
[1644962697196,0.00257413,3102.0,3101.7,1.22330943]
[1644962697446,0.00257413,3102.0,3101.8,0.80609]
[1644962697643,0.80866413,3102.0,3101.9,1.22336235]
[1644962697844,0.95383324,3102.0,3101.8,0.80609]
[1644962698044,0.14516911,3101.9,3101.8,0.80609]
[1644962698244,0.14516911,3101.9,3101.6,1.22335295]
[1644962698448,0.14516911,3101.9,3101.5,0.80606]
[1644962698449,0.14516911,3101.9,3101.7,1.22335295]
[1644962698647,0.00257405,3102.1,3101.8,1.22335295]
[1644962698849,0.14777233,3102.1,3101.9,1.22335295]
[1644962699147,0.80608,3102.0,3101.5,0.80606]
[1644962699351,0.14519828,3101.9,3101.6,1.22326469]
[1644962699548,1.6147007,3102.2,3101.6,1.22326469]
[1644962699750,0.1454512,3102.1,3101.6,1.22326469]
[1644962700146,0.1454512,3102.1,3101.6,2.02934469]
[1644962700348,0.1454512,3102.1,3101.7,1.22326469]
[1644962700747,0.00258078,3102.0,3101.7,1.22326469]
[1644962700947,0.80608,3101.9,3101.7,1.22326469]
[1644962701197,0.14547707,3101.8,3101.7,1.22326469]
[1644962701400,0.80608,3101.9,3101.7,1.22326469]
[1644962701597,0.14547618,3101.8,3101.7,1.22326469]
[1644962701800,0.80608,3101.9,3101.7,1.22326469]
[1644962702201,0.14552551,3101.8,3101.7,1.22326469]
[1644962702399,0.80608,3101.9,3101.7,1.22326469]
[1644962703200,0.15063836,3101.8,3101.7,1.22326469]
[1644962704842,0.15070593,3101.8,3101.7,1.22326469]
[1644962705049,0.8086603,3101.9,3101.7,1.22326469]
[1644962705240,0.15075491,3101.8,3101.7,1.22326469]
[1644962705641,0.1507546,3101.8,3101.7,1.22326469]
[1644962705842,0.8086603,3101.9,3101.7,1.22326469]
[1644962706044,0.15073889,3101.8,3101.7,1.22326469]
[1644962706256,0.8086603,3101.9,3101.7,1.22326469]
[1644962706442,0.15074396,3101.8,3101.7,1.22326469]
[1644962706643,0.80608,3101.9,3101.7,1.22326469]
[1644962706843,0.15074333,3101.8,3101.7,1.22326469]
[1644962707046,0.8086603,3101.9,3101.7,1.22326469]
[1644962707248,0.15074232,3101.8,3101.7,1.22326469]
[1644962707444,0.8086603,3101.9,3101.7,1.22326469]
[1644962707645,0.15074617,3101.8,3101.7,1.22326469]
[1644962707845,0.80608,3101.9,3101.7,1.22326469]
[1644962708046,0.15078313,3101.8,3101.7,1.22326469]
[1644962708345,0.15078806,3101.8,3101.7,1.22326469]
[1644962708595,0.15077775,3101.8,3101.7,1.22326469]
[1644962708792,0.80866035,3101.9,3101.7,1.22326469]
[1644962708993,0.15077654,3101.8,3101.7,1.22326469]
[1644962709194,0.80866035,3101.9,3101.7,1.22326469]
[1644962709393,0.15078519,3101.8,3101.7,1.22326469]
[1644962709592,0.15078569,3101.8,3101.7,1.22326469]
[1644962709800,0.80866035,3101.9,3101.7,1.22326469]
[1644962709993,0.15078674,3101.8,3101.7,1.22326469]
[1644962710194,0.15081357,3101.8,3101.7,1.22326469]
[1644962710995,0.80608,3101.9,3101.7,1.22326469]
[1644962711194,0.15085294,3101.8,3101.7,1.22326469]
[1644962711394,0.80608,3101.9,3101.7,1.22326469]
[1644962711596,0.15085439,3101.8,3101.7,1.22326469]
[1644962711895,0.15085515,3101.8,3101.7,1.22326469]
[1644962712093,0.15085491,3101.8,3101.7,1.22326469]
[1644962712343,0.15085445,3101.8,3101.7,1.22326469]
[1644962712541,0.80608,3101.9,3101.7,1.22326469]
[1644962712746,0.15092038,3101.8,3101.7,1.22326469]
[1644962713042,0.15092388,3101.8,3101.7,1.22326469]
[1644962713243,0.15093391,3101.8,3101.7,1.22326469]
[1644962713445,0.80866034,3101.9,3101.7,1.22326469]
[1644962713641,0.15098559,3101.8,3101.7,1.22326469]
[1644962713842,0.80608,3101.9,3101.7,1.22326469]
[1644962714043,0.80866034,3101.9,3101.7,1.22326469]
[1644962714544,0.15094743,3101.8,3101.7,1.22326469]
[1644962714746,0.15095173,3101.8,3101.7,1.22326469]
[1644962714956,0.15097256,3101.8,3101.7,1.22326469]
[1644962715145,0.80866034,3101.9,3101.7,1.22326469]
[1644962715346,0.15097978,3101.8,3101.7,1.22326469]
[1644962715649,0.00478557,3102.1,3101.7,1.22326469]
[1644962715848,1.61203,3102.4,3101.7,1.22326469]
[1644962715849,0.00478557,3102.2,3101.8,0.806]
[1644962716097,0.00478557,3102.3,3101.8,0.806]
[1644962716502,0.00478557,3102.3,3101.9,0.80595]
[1644962716897,0.61382904,3102.5,3102.1,1.78169572]
[1644962716898,0.61861461,3102.5,3102.1,1.78169572]
[1644962717098,0.61861461,3102.5,3102.1,1.38776283]
[1644962717899,0.00478557,3102.5,3102.1,0.41205711]
[1644962718099,0.00478557,3102.6,3102.1,0.41205711]
[1644962718901,0.00478557,3102.6,3102.1,1.21789711]
[1644962719099,0.00478557,3102.6,3102.1,2.02376711]
[1644962719299,0.00478557,3102.6,3102.2,0.80586]
[1644962719943,0.00760636,3102.6,3102.2,0.80586]
[1644962720145,0.00760636,3102.6,3102.2,1.61173]
[1644962720542,0.00760636,3102.6,3102.3,0.80587]
[1644962720742,0.00760636,3102.6,3102.3,1.6117155]
[1644962720942,0.00478557,3102.6,3102.3,1.6117155]
[1644962721140,0.00760633,3102.6,3102.3,1.6117155]
[1644962721542,0.00760633,3102.6,3102.4,0.80584]
[1644962721942,0.00282076,3102.6,3102.3,1.6117155]
[1644962722143,0.00478557,3102.7,3102.3,1.6117155]
[1644962722343,0.62143534,3102.7,3102.3,1.6117155]
[1644962722543,1.42250977,3102.7,3102.3,1.6117155]
[1644962722754,0.00478557,3102.6,3102.3,0.80587]
[1644962722942,0.0076063,3102.7,3102.4,0.8058242]
[1644962723448,0.0076063,3102.7,3102.5,0.80584]
[1644962723701,0.00282073,3102.7,3102.5,0.80584]
[1644962723911,0.00282073,3102.7,3102.5,1.66224]
[1644962724403,0.00282073,3102.7,3102.6,0.95749895]
[1644962724601,0.00282073,3102.7,3102.6,1.83648129]
[1644962724801,0.00394509,3102.9,3102.7,0.8057]
[1644962725201,0.00394509,3102.9,3102.6,2.64218129]
[1644962726002,0.00394509,3102.9,3102.7,1.61144]
[1644962726202,0.61777413,3103.1,3102.7,0.80576]
[1644962726400,0.61382904,3103.1,3102.7,0.80571]
[1644962726604,0.00394509,3103.0,3102.7,0.80571]
[1644962726805,0.61777413,3103.1,3102.7,2.4170246]
[1644962727202,0.18267409,3103.1,3102.7,2.4170246]
[1644962727447,0.18267409,3103.1,3102.7,0.80571]
[1644962727848,4.05937718,3103.2,3102.7,0.80571]
[1644962728048,0.93267409,3103.2,3102.7,0.80571]
[1644962728845,4.04724211,3103.2,3102.7,0.80571]
[1644962729044,0.93267409,3103.2,3102.7,0.80571]
[1644962729245,0.93267409,3103.2,3102.7,0.80971]
[1644962729446,0.93267409,3103.2,3102.8,0.80572]
[1644962729645,1.73843409,3103.2,3102.7,0.80971]
[1644962729846,1.73843409,3103.2,3103.1,1.00420135]
[1644962730147,0.93267409,3103.2,3102.7,0.80971]
[1644962730745,4.56359649,3103.3,3102.7,0.80971]
[1644962730947,0.80577,3103.1,3102.7,0.80971]
[1644962731199,0.80577,3103.1,3102.7,1.90181886]
[1644962731799,1.10577,3103.1,3102.7,1.90181886]
[1644962732002,0.3,3103.1,3102.8,0.8057036]
[1644962732203,1.0,3103.3,3102.7,1.90181886]
[1644962732600,1.0,3103.3,3102.7,3.51306886]
[1644962732800,1.0,3103.3,3102.7,1.90181886]
[1644962733000,1.80572,3103.3,3102.8,0.80571]
[1644962733204,1.80572,3103.3,3102.7,1.90181886]
[1644962734003,1.80572,3103.3,3102.7,2.70756886]
[1644962734202,2.10572,3103.3,3102.7,1.90181886]
[1644962734407,0.80576,3103.2,3102.7,1.90181886]
[1644962735544,0.80576,3103.2,3102.7,2.70755886]
[1644962735751,0.06865293,3103.1,3102.8,1.0550809]
[1644962736047,0.87443293,3103.1,3102.7,3.5]
[1644962736248,1.10578,3103.1,3102.7,0.80579]
[1644962736447,0.3,3103.1,3102.7,0.80579]
[1644962736848,1.3,3103.3,3102.7,0.80579]
[1644962737051,1.3,3103.3,3102.8,0.8626818]
[1644962737249,2.10572,3103.3,3102.9,0.80572]
[1644962737649,1.3,3103.3,3102.9,4.30572]
[1644962737857,1.62289539,3103.7,3102.9,4.30572]
[1644962737858,0.6128334,3103.6,3102.9,4.54049025]
[1644962738054,0.8059,3103.7,3103.0,1.45649473]
[1644962738256,0.8059,3103.7,3103.1,7.55168134]
[1644962738452,0.8059,3103.7,3103.3,0.23875001]
[1644962738692,0.8059,3103.7,3103.4,0.15691774]
[1644962739093,0.8059,3103.7,3103.4,1.95429731]
[1644962739293,0.8059,3103.7,3103.5,1.1054126]
[1644962739492,0.8059,3103.7,3103.5,1.32864112]
[1644962739892,0.8059,3103.7,3103.6,3.22320393]
[1644962740294,0.8059,3103.7,3103.6,4.68520393]
[1644962740493,0.8059,3103.7,3103.6,6.29583393]
[1644962743041,0.81066164,3103.7,3103.6,6.29583393]
[1644962743242,0.76059095,3103.7,3103.6,6.29583393]
[1644962744447,0.71059095,3103.7,3103.6,6.29583393]
[1644962746108,0.71059095,3103.7,3103.6,3.07263]
[1644962746301,0.71059095,3103.7,3103.6,6.24881909]
[1644962747500,0.66059095,3103.7,3103.6,6.24881909]
[1644962749104,3.3066,3104.8,3103.9,0.8053011]
[1644962749303,3.3066,3104.8,3104.0,4.38367405]
[1644962749506,6.5833334,3105.2,3104.0,4.38367405]
[1644962749703,3.0661,3105.2,3104.1,1.0]
[1644962749957,1.1959,3105.2,3104.2,3.24438498]
[1644962750149,1.1959,3105.2,3104.2,0.80524]
[1644962750443,1.1959,3105.2,3104.4,1.1051659]
[1644962750844,1.1959,3105.2,3104.4,2.1051659]
[1644962751052,1.1959,3105.2,3104.9,0.6686059]
[1644962751249,4.5823334,3105.4,3104.9,0.6686059]
[1644962751250,1.4180334,3105.4,3104.9,0.6686059]
[1644962751542,1.4180334,3105.4,3104.3,1.2269]
[1644962751543,1.02586691,3105.2,3104.3,1.2269]
[1644962751743,0.80533,3105.0,3104.3,1.2269]
[1644962751945,0.80533,3105.0,3104.3,1.5269]
[1644962752944,1.61068,3104.9,3104.4,0.805342]
[1644962753144,1.61068,3104.9,3104.4,0.803678]
[1644962753345,1.61068,3104.9,3104.5,0.3]
[1644962753598,0.80534,3104.9,3104.5,0.3]
[1644962753809,0.80534,3104.9,3104.3,1.5269]
[1644962754000,0.80534,3104.9,3104.3,0.3]
[1644962754400,0.80534,3104.9,3104.2,0.3]
[1644962754601,0.80528,3105.0,3104.2,0.3]
[1644962754799,0.80528,3105.0,3104.2,1.0]
[1644962755301,0.80528,3105.0,3104.3,3.22172131]
[1644962755705,0.80528,3105.0,3104.2,1.0]
[1644962755904,0.80528,3105.0,3104.6,0.8052798]
[1644962755905,0.06861927,3104.9,3104.6,0.8052798]
[1644962756102,0.06861927,3104.9,3104.7,0.3]
[1644962756601,0.06861927,3104.9,3104.5,0.3]
[1644962757202,0.06861927,3104.9,3104.4,1.6105291]
[1644962757946,0.06861927,3104.9,3104.6,0.8052676]
[1644962758649,1.61051,3105.1,3104.6,0.7552676]
[1644962758953,0.0686146,3105.0,3104.3,4.07402868]
[1644962759250,0.0686146,3105.0,3104.3,4.37402868]
[1644962760851,0.0686146,3105.0,3104.4,0.80521]
[1644962761098,0.0686146,3105.0,3104.5,3.30014294]
[1644962761299,0.0686146,3105.0,3104.5,3.60014294]
[1644962761695,0.0686146,3105.0,3104.5,0.3]
[1644962761895,0.0686146,3105.0,3104.4,1.10521]
[1644962762096,0.0686146,3105.0,3104.5,3.21172283]
[1644962762297,0.0686146,3105.0,3104.4,1.10521]
[1644962762697,0.0686146,3105.0,3104.4,0.3]
[1644962762899,0.0686146,3104.9,3104.7,0.8052201]
[1644962763096,1.10524,3105.2,3104.8,0.3]
[1644962763297,0.06861538,3105.1,3104.8,0.3]
[1644962763497,0.87385538,3105.1,3104.4,0.3]
[1644962763699,3.67739715,3105.0,3104.3,1.4763]
[1644962763897,0.06861538,3104.9,3104.3,1.4763]
[1644962764101,0.06861538,3104.9,3104.3,1.47198821]
[1644962764300,0.06861538,3104.9,3104.3,2.27723821]
[1644962764498,0.06861538,3104.8,3104.7,1.6103957]
[1644962764951,0.07335321,3105.0,3104.7,1.6103957]
[1644962765150,0.06861538,3104.9,3104.7,1.6103957]
[1644962766252,0.06861538,3104.9,3104.7,1.6243957]
[1644962766952,0.06861538,3104.9,3104.8,0.3]
[1644962767756,0.80999783,3105.0,3104.8,0.3]
[1644962767956,0.80999783,3105.0,3104.8,1.1052307]
[1644962768153,0.06861449,3104.9,3104.8,1.1052307]
[1644962769797,0.00282317,3105.0,3104.8,1.1052307]
[1644962770597,0.06861241,3105.2,3104.8,1.1052307]
[1644962771295,6.3697,3105.7,3104.8,1.1052307]
[1644962771296,0.00473783,3105.3,3104.8,1.1052307]
[1644962771498,0.06861241,3105.4,3104.8,1.1052307]
[1644962771897,0.06861241,3105.3,3104.8,1.1052307]
[1644962772099,0.06861241,3105.2,3104.8,1.1052307]
[1644962772348,0.06861241,3105.1,3104.8,1.1052307]
[1644962772549,0.06861241,3105.0,3104.8,1.1052307]
[1644962772752,0.04035807,3105.5,3104.8,1.1052307]
[1644962772948,0.06671225,3105.4,3104.9,0.80511]
[1644962773150,0.06671225,3105.4,3104.9,1.9102313]
[1644962773349,0.00268404,3105.1,3104.9,1.9102313]
[1644962773549,0.00268404,3105.1,3104.9,1.1051213]
[1644962774149,0.80987783,3105.4,3105.0,3.21878733]
[1644962774355,0.80987783,3105.4,3105.0,4.02391093]
[1644962774550,0.00268399,3105.2,3105.0,1.2671236]
[1644962774753,0.00268399,3105.2,3105.1,0.3]
[1644962774951,0.00742182,3105.2,3105.1,0.3]
[1644962775151,0.00268399,3105.2,3105.1,0.3322694]
[1644962775349,0.80991783,3105.3,3105.1,0.3322694]
[1644962777200,0.80991783,3105.3,3105.1,0.0322694]
[1644962778905,0.00473783,3105.3,3105.1,0.0322694]
[1644962779104,0.00473783,3105.3,3105.1,1.1373796]
[1644962779304,0.00269584,3105.4,3105.1,1.1373796]
[1644962779949,0.00269584,3105.4,3105.1,4.33624808]
[1644962780166,0.04035807,3105.5,3105.2,0.462]
[1644962780648,0.00269581,3105.4,3105.2,0.462]
[1644962781250,0.00269581,3105.4,3105.3,3.20367494]
[1644962781450,0.04035807,3105.5,3105.3,3.66567494]
[1644962781649,0.04035807,3105.5,3105.4,3.22993827]
[1644962781850,0.04035807,3105.5,3105.4,4.69193827]
[1644962782353,0.04035807,3105.5,3105.4,4.72420767]
[1644962788151,0.04035807,3105.5,3105.4,1.4942694]
[1644962788752,0.04035807,3105.5,3105.4,3.69259068]
[1644962788955,0.04035807,3105.5,3105.4,5.49750068]
[1644962791704,1.9888293,3106.2,3105.4,5.49750068]
[1644962791901,1.7437334,3106.2,3105.5,2.4146786]
[1644962792202,1.7437334,3106.2,3105.6,0.462]
[1644962792400,1.7437334,3106.2,3105.6,0.4942694]
[1644962792606,2.5486634,3106.2,3105.6,0.4942694]
[1644962792802,0.9128334,3106.1,3105.6,0.4942694]
[1644962793002,0.87363089,3106.0,3105.6,0.4942694]
[1644962793204,0.06860089,3105.9,3105.6,0.4942694]
[1644962793806,0.06860089,3105.9,3105.7,0.8049468]
[1644962794004,0.06860089,3105.9,3105.8,0.462]
[1644962794205,0.06860089,3105.9,3105.8,0.762]
[1644962794405,0.06860089,3105.9,3105.8,0.7942694]
[1644962796355,0.06860089,3105.9,3105.8,1.5991792]
[1644962796954,0.00269929,3106.0,3105.8,1.5991792]
[1644962797154,0.6128334,3106.2,3105.8,1.35876661]
[1644962797455,0.00269929,3106.0,3105.8,0.4942694]
[1644962797654,0.07130018,3106.0,3105.8,0.4942694]
[1644962797862,0.06860089,3105.9,3105.8,0.4942694]
[1644962798254,0.6128334,3106.2,3105.8,0.4942694]
[1644962798457,0.6128334,3106.2,3105.8,1.2991394]
[1644962798699,0.06860089,3106.1,3105.8,1.2991394]
[1644962798898,0.6128334,3106.2,3105.8,1.2991394]
[1644962799103,0.06860089,3106.1,3105.8,2.1040376]
[1644962799297,0.06860089,3106.0,3105.8,3.4040376]
[1644962799498,0.6128334,3106.3,3105.8,2.5991676]
[1644962799709,0.00255046,3106.1,3105.8,1.5991676]
[1644962800700,0.6128334,3106.2,3105.8,1.5991676]
[1644962800701,1.4178034,3106.2,3105.8,1.5991676]
[1644962800904,1.4178034,3106.2,3105.9,0.8049688]
[1644962800905,0.07115135,3106.1,3105.9,0.8049688]
[1644962801501,0.00255046,3106.1,3105.9,0.8372382]
[1644962801902,0.80499,3106.1,3105.9,0.8372382]
[1644962802101,0.06860089,3106.0,3105.9,0.8372382]
[1644962802752,0.06860089,3106.1,3105.9,0.8372382]
[1644962802955,0.00255043,3106.2,3105.9,0.8372382]
[1644962802956,0.06860089,3106.0,3105.9,0.8372382]
[1644962803353,0.00256069,3106.2,3105.9,0.8372382]
[1644962804456,0.06860089,3106.2,3105.9,0.8372382]
[1644962804654,0.06860089,3106.1,3105.9,1.8372382]
[1644962804855,0.06860089,3106.0,3105.9,1.8372382]
[1644962805254,0.61539406,3106.2,3105.9,0.8372382]
[1644962805456,0.88559628,3106.5,3105.9,1.8372382]
[1644962805457,0.6128334,3106.3,3105.9,1.8372382]
[1644962805762,1.1842,3106.6,3105.9,1.8372382]
[1644962805763,0.00256071,3106.1,3106.0,3.1564705]
[1644962805955,0.0711616,3106.1,3106.0,3.6184705]
[1644962806199,0.00256071,3106.1,3106.0,4.9184705]
[1644962806399,0.00256071,3106.1,3106.0,0.762]
[1644962806600,0.68143429,3106.4,3106.0,0.7942694]
[1644962806601,0.06860089,3106.3,3106.0,0.7942694]
[1644962806800,0.6128334,3106.4,3106.0,1.5991625]
[1644962806801,0.06860089,3106.2,3106.0,1.5991625]
[1644962807001,0.06860089,3106.1,3106.0,1.5991625]
[1644962807203,0.07116086,3106.2,3106.0,1.5991625]
[1644962807800,0.06860089,3106.2,3106.0,1.5991625]
[1644962809200,0.00471414,3106.3,3106.0,1.5991625]
[1644962809201,0.68614843,3106.3,3106.0,1.5991625]
[1644962809413,0.06860089,3106.2,3106.0,1.5991625]
[1644962809604,0.06860089,3106.1,3106.0,1.5991625]
[1644962810048,1.42503748,3106.3,3106.0,1.5991625]
[1644962810049,0.06860089,3106.2,3106.0,1.5991625]
[1644962810252,0.06860089,3106.1,3106.0,1.5991625]
[1644962810849,0.68870844,3106.2,3106.0,1.5991625]
[1644962811055,0.06860089,3106.1,3106.0,1.5991625]
[1644962811651,0.06860089,3106.2,3106.0,1.5991625]
[1644962811852,0.06860089,3106.1,3106.0,1.5991625]
[1644962812052,0.0711609,3106.2,3106.0,1.5991625]
[1644962812653,0.06860089,3106.1,3106.0,1.5991625]
[1644962812952,0.06860089,3106.2,3106.0,1.5991625]
[1644962813151,0.06860089,3106.1,3106.0,1.5991625]
[1644962813351,0.06860089,3106.2,3106.0,4.79620775]
[1644962813611,0.06860089,3106.1,3106.0,1.5991625]
[1644962814005,0.06860089,3106.2,3106.0,1.5991625]
[1644962814207,0.06860089,3106.1,3106.0,1.5991625]
[1644962814405,0.06860089,3106.1,3106.0,4.77668475]
[1644962814606,0.06860089,3106.2,3106.0,4.77668475]
[1644962815610,0.87351089,3106.2,3106.0,4.77668475]
[1644962815813,0.06860089,3106.1,3106.0,4.77668475]
[1644962816906,0.06860089,3106.1,3106.0,1.5991625]
[1644962817106,0.07116089,3106.2,3106.0,1.5991625]
[1644962817350,0.07116089,3106.2,3106.0,1.39777333]
[1644962817551,0.06860089,3106.2,3106.0,1.39777333]
[1644962817851,0.06860089,3106.1,3106.0,1.39777333]
[1644962818052,0.06860089,3106.2,3106.0,2.20260333]
[1644962818250,0.06860089,3106.1,3106.0,1.39777333]
[1644962818650,0.00727412,3106.3,3106.0,1.39777333]
[1644962818651,0.06860089,3106.2,3106.0,1.39777333]
[1644962818854,0.07116089,3106.2,3106.0,1.39777333]
[1644962819953,0.06860089,3106.2,3106.0,1.39777333]
[1644962820554,0.06860089,3106.1,3106.0,1.39777333]
[1644962820754,0.06860089,3106.2,3106.0,2.73076228]
[1644962820954,0.06860089,3106.1,3106.0,1.39777333]
[1644962821212,0.06860089,3106.1,3106.0,2.73076314]
[1644962821813,0.06860089,3106.2,3106.0,3.73076314]
[1644962822012,0.06860089,3106.2,3106.0,1.39777333]
[1644962822216,0.06860089,3106.2,3106.1,1.0]
[1644962822412,0.06860089,3106.2,3106.0,1.39777333]
[1644962822812,0.06860089,3106.2,3106.0,2.50268333]
[1644962823214,0.06860089,3106.2,3106.1,1.0]
[1644962823613,0.61754754,3106.3,3106.1,1.0]
[1644962823812,0.61754754,3106.3,3106.1,1.83712]
[1644962823813,0.62010752,3106.3,3106.1,1.83712]
[1644962824018,0.06860089,3106.2,3106.1,1.83712]
[1644962824415,0.06860089,3106.2,3106.1,3.1714205]
[1644962824616,0.68143429,3106.2,3106.1,1.83712]
[1644962824852,0.6128334,3106.2,3106.1,1.83712]
[1644962825054,0.68143429,3106.2,3106.1,1.83712]
[1644962826451,0.06860089,3106.2,3106.1,1.83712]
[1644962827655,0.61544094,3106.2,3106.1,3.17177005]
[1644962827857,0.06860089,3106.2,3106.1,3.17177005]
[1644962828057,0.00471414,3106.2,3106.1,3.17177005]
[1644962828256,0.06860089,3106.2,3106.1,3.17177005]
[1644962828907,0.06860089,3106.2,3106.1,3.16626792]
[1644962830309,0.06860089,3106.2,3106.1,2.16626792]
[1644962830514,0.06860089,3106.2,3106.1,0.83161787]
[1644962830711,0.6155331,3106.2,3106.1,2.16650208]
[1644962830911,0.68413399,3106.2,3106.1,2.16650208]
[1644962831510,0.06860089,3106.2,3106.1,2.16650208]
[1644962832758,0.68413399,3106.2,3106.1,2.16650208]
[1644962833155,0.06860089,3106.2,3106.1,2.16650208]
[1644962833556,0.06860089,3106.2,3106.1,5.36939957]
[1644962834560,0.68413399,3106.2,3106.1,2.16650208]
[1644962834756,0.06860089,3106.2,3106.1,2.16650208]
[1644962835756,0.06860089,3106.2,3106.1,5.84181529]
[1644962836805,0.06860089,3106.2,3106.1,6.84181529]
[1644962837006,0.68413399,3106.2,3106.1,3.62850208]
[1644962837412,0.68413399,3106.2,3106.1,2.29361787]
[1644962837605,0.68413399,3106.2,3106.1,2.63229802]
[1644962837806,0.68413399,3106.2,3106.1,2.29361787]
[1644962838309,0.06860089,3106.2,3106.1,3.63266137]
[1644962838507,0.06860089,3106.2,3106.1,2.29361787]